[Event "29th CRO-chT Junior 2020"]
[Site "Cakovec"]
[Date "2020.07.19"]
[Round "11"]
[White "Karlovcec, David"]
[Black "Damjanovic, Stjepan"]
[Result "0-1"]
[ECO "D40"]
[WhiteElo "1655"]
[BlackElo "1867"]
[Annotator "NA RC"]
[PlyCount "58"]
[EventDate "2020.??.??"]
[EventCountry "CRO"]
[SourceTitle "playchess.com"]
[Source "ChessBase"]
[SourceQuality "1"]
[TimeControl "5400+30"]

1. d4 Nf6 2. c4 e6 3. Nf3 c5 4. e3 d5 5. Nc3 Nc6 6. a3 b6 {[#]} 7. cxd5 $1 Nxd5 8. Bb5 Bb7 9. Qa4 Qd6 10. Ne5 Nde7 11. O-O a6 12. Bxc6+ Nxc6 13. Nc4 $17 (13. Ne4 $15 Qc7 14. Nf3) 13... Qd8 14. Rd1 b5 15. Qb3 cxd4 16. exd4 Qc7 17. d5 bxc4 18. Qxc4 Bd6 19. dxc6 Bxh2+ 20. Kh1 Bxc6 21. Qg4 O-O 22. Bh6 Be5 23. f4 Bf6 24. Rd3 Qa5 25. Rg3 Qf5 26. Qe2 Kh8 27. Bxg7+ Bxg7 28. Rg5 Qh3+ 29. Kg1 Bd4+ 0-1

[Event "29th CRO-chT Junior 2020"]
[Site "Cakovec"]
[Date "2020.07.19"]
[Round "11"]
[White "Dankos, Mislav"]
[Black "Zekic, Patrik"]
[Result "0-1"]
[ECO "D37"]
[WhiteElo "1274"]
[BlackElo "1699"]
[Annotator "NA RC"]
[PlyCount "72"]
[EventDate "2020.??.??"]
[EventCountry "CRO"]
[SourceTitle "playchess.com"]
[Source "ChessBase"]
[SourceQuality "1"]
[TimeControl "5400+30"]

1. d4 d5 2. c4 e6 3. Nc3 Nf6 4. Nf3 Be7 5. Bf4 O-O 6. e3 a6 7. a4 b6 8. Bd3 Bb7 9. O-O Nbd7 10. Rc1 c5 11. cxd5 exd5 12. b3 Re8 13. Re1 Rc8 14. Qe2 cxd4 15. Nxd4 Bb4 16. Qb2 Ne4 17. Bxe4 dxe4 18. Red1 Qf6 19. Nce2 Nc5 20. Rc4 Nd3 21. Qb1 Rxc4 22. bxc4 Bc5 23. a5 Bc8 24. axb6 Bxb6 25. Bg3 Rd8 26. Kh1 Bg4 27. h3 Bxd4 28. hxg4 Qh6+ 29. Kg1 Bxe3 30. fxe3 Qxe3+ 31. Kf1 f5 32. Bh4 g5 33. Nc1 gxh4 34. Nxd3 exd3 35. gxf5 Rd4 36. Re1 Rf4# 0-1

[Event "29th CRO-chT Junior 2020"]
[Site "Cakovec"]
[Date "2020.07.19"]
[Round "11"]
[White "Kristofic, Dino"]
[Black "Mandaric, Fran"]
[Result "0-1"]
[ECO "B77"]
[WhiteElo "1271"]
[BlackElo "1671"]
[Annotator "NA RC"]
[PlyCount "45"]
[EventDate "2020.??.??"]
[EventCountry "CRO"]
[SourceTitle "playchess.com"]
[Source "ChessBase"]
[SourceQuality "1"]
[TimeControl "5400+30"]

1. e4 c5 2. Nf3 Nc6 3. Nc3 g6 4. d4 cxd4 5. Nxd4 Bg7 6. Be3 d6 7. Bc4 Nf6 8. Qd2 O-O 9. f3 e6 10. Bg5 Nxd4 11. Qxd4 Nxe4 12. Nxe4 Bxd4 13. Bxd8 Rxd8 14. Rd1 Bxb2 15. Rxd6 Rxd6 16. Nxd6 Be5 17. Ne4 Bd7 18. Ke2 Rc8 19. Bb3 Bc6 20. Nf2 a5 21. a4 b5 22. axb5 Bxb5+ 23. Nd3 0-1